bitfinex-derivatives/quotes_BNBF0:USTF0_20250810
["timestamp","ask_amount","ask_price","bid_price","bid_amount"]
[1754809213582,0.5,810.39,810.31,1.66281539]
[1754809214184,0.5,810.39,810.32,1.66281539]
[1754809214786,0.2150066,810.76,810.37,1.66281539]
[1754809214986,0.2150066,810.76,810.37,1.31781539]
[1754809215587,0.5,810.39,809.82,2.75971933]
[1754809215987,0.5,810.39,809.54,3.86360707]
[1754809216283,0.5,810.39,809.55,1.08872061]
[1754809216487,0.5,810.39,809.54,3.86360707]
[1754809216488,0.5,810.39,809.56,1.08872061]
[1754809216684,0.5,810.39,809.57,1.08872061]
[1754809216885,0.5,810.39,809.58,1.08872061]
[1754809217185,0.5,810.39,809.59,1.08872061]
[1754809217386,0.5,810.39,809.6,1.08872061]
[1754809217585,0.5,810.39,809.61,1.08872061]
[1754809217786,0.5,810.39,809.62,1.08872061]
[1754809217984,0.5,810.39,809.63,1.08872061]
[1754809218188,0.5,810.39,809.64,1.08872061]
[1754809218389,0.5,810.39,809.65,1.08872061]
[1754809218590,0.5,810.39,809.66,1.08872061]
[1754809218790,0.5,810.39,809.67,1.08872061]
[1754809218986,0.5,810.39,809.68,1.08872061]
[1754809219189,0.5,810.39,809.69,1.08872061]
[1754809219386,0.5,810.39,809.7,1.08872061]
[1754809219590,0.5,810.39,809.71,1.08872061]
[1754809219789,0.5,810.39,809.72,1.08872061]
[1754809219989,0.5,810.39,809.73,1.08872061]
[1754809220187,0.5,810.39,809.04,2.75971933]
[1754809220188,0.5,810.39,809.74,1.08872061]
[1754809220390,0.5,810.39,809.75,1.08872061]
[1754809220594,0.5,810.39,809.76,1.08872061]
[1754809220791,0.5,810.39,809.77,1.08872061]
[1754809220992,0.5,810.39,809.01,2.75971933]
[1754809221293,0.5,810.39,809.02,1.08879374]
[1754809221496,0.5,810.39,809.03,1.08879374]
[1754809221694,0.5,810.39,809.04,1.08879374]
[1754809221893,0.5,810.39,809.05,1.08879374]
[1754809222191,0.5,810.39,809.06,1.08879374]
[1754809222395,0.5,810.39,809.07,1.08879374]
[1754809222594,0.5,810.39,809.08,1.08879374]
[1754809222794,0.5,810.39,809.09,1.08879374]
[1754809222994,0.5,810.39,809.1,1.08879374]
[1754809223292,0.5,810.39,809.11,1.08879374]
[1754809223492,0.5,810.39,809.12,1.08879374]
[1754809223696,0.5,810.39,809.13,1.08879374]
[1754809223894,0.5,810.39,809.14,1.08879374]
[1754809224196,0.5,810.39,809.15,1.08879374]
[1754809224397,0.5,810.39,809.16,1.08879374]
[1754809224592,0.5,810.39,809.17,1.08879374]
[1754809224793,0.5,810.39,809.18,1.08879374]
[1754809224996,0.5,810.39,809.19,1.08879374]
[1754809225193,0.5,810.39,809.2,1.08879374]
[1754809225393,0.5,810.39,809.21,1.08879374]
[1754809225699,0.5,810.39,809.22,1.08879374]
[1754809225897,0.5,810.39,809.35,2.75971933]
[1754809226097,0.5,810.39,809.36,1.08879374]
[1754809226295,0.5,810.39,809.37,1.08879374]
[1754809226500,0.5,810.39,809.39,2.75971933]
[1754809226700,0.5,810.39,809.4,1.08879374]
[1754809226896,0.5,810.39,809.41,3.84851307]
[1754809227095,0.5,810.39,809.42,1.08879374]
[1754809227299,0.5,810.39,809.43,1.08879374]
[1754809227497,0.5,810.39,809.54,2.75971933]
[1754809227796,0.5,810.39,809.55,1.08879374]
[1754809228000,0.5,810.39,809.59,2.75971933]
[1754809228196,0.5,810.39,809.6,1.08879374]
[1754809228398,0.5,810.39,809.61,1.08879374]
[1754809228596,0.5,810.39,809.22,3.86360707]
[1754809228597,0.5,810.39,809.7,2.75971933]
[1754809228898,0.2150066,810.76,809.7,2.75971933]
[1754809229098,0.2150066,810.76,808.65,5.48671553]
[1754809229099,0.2150066,810.76,810.01,2.75971933]
[1754809229500,0.2150066,810.76,809.95,2.75971933]
[1754809229800,0.5,810.39,809.95,2.75971933]
[1754809230601,0.5,810.39,810.01,2.75971933]
[1754809231097,0.5,810.39,810.02,2.75971933]
[1754809232103,0.5,810.39,810.01,2.75971933]
[1754809232799,0.5,810.45,809.92,2.75971933]
[1754809233199,0.5,810.45,809.95,2.75971933]
[1754809233401,0.5,810.49,809.95,2.75971933]
[1754809233806,0.5,810.49,809.8,2.75971933]
[1754809234007,0.5,810.49,809.81,1.0885027]
[1754809234209,0.5,810.54,809.86,2.75971933]
[1754809234804,0.5,810.54,809.85,2.75971933]
[1754809235106,0.5,810.54,810.52,1.66705905]
[1754809236304,0.5,810.54,810.51,1.66705905]
[1754809236805,0.5,810.54,810.47,1.66705905]
[1754809237110,0.5,810.54,810.46,1.66705905]
[1754809240311,0.5,810.54,810.45,1.66705905]
[1754809241614,0.5,810.54,810.46,1.66705905]
[1754809243121,0.5,810.54,810.45,1.66705905]
[1754809243421,0.5,810.54,810.49,1.66705905]
[1754809243718,0.5,810.54,810.46,1.66705905]
[1754809244024,0.5,810.54,810.47,1.66705905]
[1754809246724,0.5,810.54,810.49,1.66705905]
[1754809246923,0.5,810.54,810.48,1.66705905]
[1754809251520,0.5,810.54,810.5,1.66705905]
[1754809253626,0.5,810.54,809.9,2.75971933]
[1754809254022,0.5,810.54,809.09,5.48671553]
[1754809254023,0.5,810.54,809.97,2.75971933]
[1754809255327,0.5,810.59,809.97,2.75971933]
[1754809255523,0.5,810.59,810.56,1.66484907]
[1754809255825,0.5,810.59,809.99,2.75971933]
[1754809256026,0.5,810.59,810.04,2.75971933]
[1754809256727,0.5,810.59,810.03,2.75971933]
[1754809257124,0.5,810.59,810.11,2.75971933]
[1754809257630,0.5,810.59,810.1,2.75971933]
[1754809260827,0.5,810.59,810.08,2.75971933]
[1754809261123,0.5,810.59,810.4,1.66489438]
[1754809261423,0.296,810.48,810.32,1.66489438]
[1754809261927,0.2150066,810.76,810.31,1.66489438]
[1754809261928,0.296,810.49,810.31,1.66489438]
[1754809263525,0.296,810.49,810.3,1.66489438]
[1754809266929,0.296,810.49,810.31,1.66489438]
[1754809267329,0.296,810.49,810.35,1.66489438]
[1754809267533,0.296,810.49,810.42,1.66489438]
[1754809269131,0.296,810.49,810.43,1.66489438]
[1754809269735,0.296,810.49,810.42,1.66489438]
[1754809270635,0.296,810.49,810.43,1.66489438]
[1754809270836,0.296,810.49,810.42,1.66489438]
[1754809271035,0.296,810.49,810.41,1.66489438]
[1754809271238,0.296,810.49,810.43,1.66489438]
[1754809271436,0.2150066,810.76,810.44,1.16489438]
[1754809271636,0.2150066,810.76,810.52,0.49143102]
[1754809271940,0.2150066,810.76,809.65,3.86360707]
[1754809272136,0.292,810.26,809.65,3.64869807]
[1754809272639,0.292,810.26,809.53,2.75971933]
[1754809272837,0.292,810.26,809.54,1.09651251]
[1754809273040,0.292,810.26,809.55,1.09651251]
[1754809273238,0.292,810.26,809.56,1.09651251]
[1754809273437,0.292,810.26,809.54,2.75971933]
[1754809273637,0.292,810.26,809.55,1.09647045]
[1754809273837,0.292,810.26,809.56,1.09647045]
[1754809274141,0.5,810.36,809.54,2.75971933]
[1754809274341,0.5,810.36,809.55,1.0963849]
[1754809274541,0.5,810.36,809.56,1.0963849]
[1754809274741,0.5,810.36,809.53,2.75971933]
[1754809274942,0.5,810.36,809.54,1.09643185]
[1754809275142,0.21503317,810.17,809.55,1.09643185]
[1754809275341,0.21503317,810.17,809.53,2.75971933]
[1754809275540,0.21503317,810.17,809.54,1.09639287]
[1754809275844,0.21503317,810.17,809.55,1.09639287]
[1754809276143,0.21503317,810.17,809.56,1.09639287]
[1754809276443,0.21503317,810.17,809.57,1.09628442]
[1754809276642,0.21503317,810.17,809.58,1.09628442]
[1754809276839,0.21503317,810.17,809.59,1.09628442]
[1754809277044,0.21503317,810.17,809.6,1.09628442]
[1754809277242,0.21503317,810.17,809.61,1.09628442]
[1754809277439,0.21503317,810.17,809.62,1.09628442]
[1754809277743,0.21503317,810.17,809.63,1.09628442]
[1754809277940,0.21503317,810.17,809.64,1.09628442]
[1754809278145,0.21503317,810.17,809.65,1.09628442]
[1754809278444,0.21503317,810.17,809.66,1.09628442]
[1754809278646,0.21503317,810.17,809.67,1.09628442]
[1754809278846,0.21503317,810.17,809.68,1.09628442]
[1754809279145,0.21503317,810.17,809.69,1.09628442]
[1754809279343,0.00617281,810.17,809.7,1.09634484]
[1754809279543,0.5,810.45,809.71,1.09634484]
[1754809279842,0.5,810.45,809.72,1.09634484]
[1754809280047,0.5,810.45,809.73,1.09634484]
[1754809280244,0.5,810.45,809.74,1.09634484]
[1754809280443,0.5,810.45,809.57,2.75971933]
[1754809280642,0.5,810.45,809.6,2.75971933]
[1754809280846,0.5,810.45,809.61,1.09640933]
[1754809281044,0.5,810.45,809.62,1.09640933]
[1754809281343,0.5,810.45,809.76,2.75971933]
[1754809282743,0.21500062,810.28,809.84,2.75971933]
[1754809284343,0.21500062,810.28,809.85,2.75971933]
[1754809285547,0.21500062,810.28,809.86,2.75971933]
[1754809286552,0.21500062,810.28,809.89,2.75971933]
[1754809287052,0.21500062,810.28,809.87,2.75971933]
[1754809288149,0.21500062,810.28,809.58,3.88633233]
[1754809288351,0.21500062,810.28,809.59,1.09658785]
[1754809288552,0.21500062,810.28,809.6,1.09658785]
[1754809288751,0.21500062,810.28,809.61,1.09658785]
[1754809288951,0.21500062,810.28,809.62,1.09658785]
[1754809289252,0.21500062,810.28,809.63,1.09658785]
[1754809289452,0.21500062,810.28,809.64,1.09658785]
[1754809289754,0.21500062,810.28,809.65,1.09658785]
[1754809289953,0.21500062,810.28,809.24,2.75971933]
[1754809289954,0.21500062,810.28,809.66,1.09658785]
[1754809290252,0.21500062,810.28,809.67,1.09658785]
[1754809290455,0.21500062,810.28,809.68,1.09658785]
[1754809290755,0.21500062,810.28,809.69,1.09658785]
[1754809290955,0.21500062,810.28,809.7,1.09658785]
[1754809291256,0.21500062,810.28,809.71,1.09663541]
[1754809291457,0.21500062,810.28,810.2,1.66596004]
[1754809293955,0.21500062,810.28,810.23,1.66596004]
[1754809295654,0.21500062,810.28,810.24,1.66596004]
[1754809296858,0.21500062,810.28,809.34,2.75971933]
[1754809297056,0.21500062,810.28,809.38,2.75971933]
[1754809297261,0.21500062,810.28,809.39,1.09672115]
[1754809297561,0.21500062,810.28,809.4,3.85644048]
[1754809297760,0.21500062,810.28,809.41,1.09672115]
[1754809297957,0.0069016,810.28,809.42,1.09672115]
[1754809298157,0.481,810.49,809.93,2.75971933]
[1754809299058,0.481,810.49,810.0,2.75971933]
[1754809299659,0.481,810.49,810.04,2.75971933]
[1754809301161,0.21497937,810.38,810.04,2.75971933]
[1754809301763,0.21497937,810.38,810.05,2.75971933]
[1754809302161,0.21497937,810.38,810.09,2.75971933]
[1754809304367,0.21497937,810.38,809.86,2.75971933]
[1754809305870,0.21497937,810.38,810.24,1.66299824]
[1754809306066,0.21497937,810.38,810.26,1.66299824]
[1754809306765,0.21497937,810.38,810.27,1.66299824]
[1754809307966,0.21497937,810.38,810.24,1.66299824]
[1754809308269,0.21497937,810.38,810.21,1.66299824]
[1754809308465,0.21497937,810.38,810.23,1.66299824]
[1754809313975,0.21497937,810.38,810.34,1.66299824]
[1754809314373,0.21497937,810.38,810.37,1.66299824]
[1754809314578,0.21497937,810.38,809.45,2.75971933]
[1754809314873,0.21497937,810.38,809.21,3.88633233]
[1754809314874,0.21497937,810.38,809.61,2.75971933]
[1754809315079,0.0004194,810.38,809.62,1.09642597]
[1754809315379,0.5,810.53,809.85,2.75971933]
[1754809315578,0.5,810.53,810.51,1.66551344]
[1754809315775,0.5,810.53,809.85,2.75971933]
[1754809315776,0.5,810.53,809.99,2.75971933]
[1754809316679,0.5,810.53,810.03,2.75971933]
[1754809317278,0.5,810.53,809.95,2.75971933]
[1754809317981,0.5,810.53,809.61,3.88633233]
[1754809317982,0.5,810.53,809.96,2.75971933]
[1754809318377,0.21497538,810.39,809.97,2.75971933]
[1754809318776,0.21497538,810.39,809.98,2.75971933]
[1754809320378,0.21497538,810.39,809.97,2.75971933]
[1754809321483,0.21497538,810.39,809.96,2.75971933]
[1754809321981,0.21497538,810.39,809.97,2.75971933]
[1754809323484,0.21497538,810.39,809.96,2.75971933]
[1754809325184,0.00116875,810.39,809.96,2.75971933]
[1754809325481,0.5,810.53,809.96,2.75971933]
[1754809325781,0.5,810.53,809.98,2.75971933]
[1754809327186,0.5,810.53,810.0,2.75971933]
[1754809327886,0.5,810.53,809.64,3.88633233]
[1754809327887,0.5,810.53,810.06,2.75971933]
[1754809328484,0.2149621,810.42,810.06,2.75971933]
[1754809329284,0.2149621,810.42,810.05,2.75971933]
[1754809330385,0.2149621,810.42,810.08,2.75971933]
[1754809330888,1.09615333,811.8,810.13,2.75971933]
[1754809331089,1.64423,811.95,810.76,1.66469302]
[1754809331284,3.83653667,812.79,809.33,5.48671553]
[1754809331990,0.5,810.74,810.17,2.77337454]
[1754809332387,0.5,810.74,809.85,3.88272436]
[1754809332388,0.5,810.74,810.14,2.77337454]
[1754809332892,0.5,810.74,810.15,2.77337454]
[1754809333389,0.5,810.74,810.14,2.77337454]
[1754809334092,0.21490701,810.6,810.14,2.77337454]
[1754809335289,0.5,810.74,810.14,2.77337454]
[1754809335592,0.5,810.74,810.73,1.66341367]
[1754809335789,0.5,810.74,810.55,1.66341367]
[1754809336094,0.5,810.74,810.54,1.66341367]
[1754809336388,0.5,810.74,810.53,1.66341367]
[1754809336889,0.5,810.74,810.57,1.66341367]
[1754809337288,0.5,810.74,810.63,1.66341367]
[1754809337490,0.5,810.74,810.64,1.66341367]
[1754809337690,0.5,810.86,810.66,1.66341367]
[1754809337990,0.5,810.86,810.65,1.66341367]
[1754809338190,0.5,810.86,810.64,1.66341367]
[1754809338393,0.5,810.86,810.67,1.66341367]
[1754809338596,0.2148493,810.81,810.78,1.66341367]
[1754809338894,0.2148493,810.81,809.95,2.77337454]
[1754809339195,0.2148493,810.81,810.09,2.77337454]
[1754809339392,0.2148493,810.81,810.1,1.09380709]
[1754809339591,0.2148493,810.81,810.11,1.09380709]
[1754809339791,0.2148493,810.81,810.12,1.09380709]
[1754809339994,0.2148493,810.81,810.13,1.09380709]
[1754809340291,0.2148493,810.81,810.14,1.09380709]
[1754809340490,0.2148493,810.81,810.08,2.77337454]
[1754809340491,0.2148493,810.81,810.15,1.09380709]
[1754809340689,0.2148493,810.81,810.16,1.09380709]
[1754809340895,0.2148493,810.81,810.17,1.09380709]
[1754809341096,0.2148493,810.81,810.18,1.09380709]
[1754809341395,0.2148493,810.81,810.19,1.09380709]
[1754809341692,0.2148493,810.81,810.32,2.77337454]
[1754809342292,0.2148493,810.81,810.31,2.77337454]
[1754809342795,0.2148493,810.81,810.29,2.77337454]
[1754809343293,0.2148493,810.81,810.37,2.77337454]
[1754809344194,0.5,811.15,810.37,2.77337454]
[1754809344394,0.5,811.15,811.04,1.65391465]
[1754809344595,0.5,811.15,811.06,1.65391465]
[1754809344799,0.5,811.15,810.9,1.65391465]
[1754809345199,0.5,811.15,810.89,1.65391465]
[1754809345900,0.21476775,811.09,810.89,1.65391465]
[1754809346300,0.21476775,811.09,810.88,1.65391465]
[1754809346796,0.21476775,811.09,810.87,1.65391465]
[1754809348195,0.21476775,811.09,810.86,1.65391465]
[1754809349202,0.21476775,811.09,810.84,1.65391465]
[1754809350400,0.21476775,811.09,810.83,1.65391465]
[1754809350898,0.21476775,811.09,810.82,1.65391465]
[1754809351100,0.21476775,811.09,810.9,1.65391465]
[1754809351301,0.21476775,811.09,811.07,1.65391465]
[1754809353198,0.21476775,811.09,811.06,1.65391465]
[1754809355300,0.21476775,811.09,811.05,1.65391465]
[1754809355599,0.21476775,811.09,811.07,1.65391465]
[1754809356000,0.21476775,811.09,810.42,2.77337454]
[1754809356200,0.21476775,811.09,810.43,1.08424381]
[1754809356399,0.21476775,811.09,810.54,2.77337454]
[1754809356600,0.21476775,811.09,810.55,1.08424381]
[1754809356805,0.21476775,811.09,810.56,1.08424381]
[1754809357004,0.21476775,811.09,810.57,1.08424381]
[1754809357305,0.21476775,811.09,810.58,1.08424381]
[1754809357604,0.21476775,811.09,810.53,2.77337454]
[1754809357802,0.21476775,811.09,810.54,1.08447028]
[1754809358001,0.21476775,811.09,810.62,2.77337454]
[1754809358905,0.21476775,811.09,810.63,2.77337454]
[1754809359105,0.5,811.3,810.63,2.77337454]
[1754809359304,0.5,811.3,811.18,1.64674667]
[1754809359802,0.5,811.3,811.17,1.64674667]
[1754809360306,0.5,811.3,811.16,1.64674667]
[1754809361104,0.5,811.3,811.17,1.64674667]
[1754809361308,0.5,811.3,811.29,1.09753314]
[1754809362109,0.5,811.3,811.17,1.64674667]
[1754809362305,0.71471938,811.3,811.17,1.64674667]
[1754809364211,0.71471938,811.3,811.28,1.09728775]
[1754809364510,0.71471938,811.3,811.1,1.09728775]
[1754809364711,0.293,811.22,811.01,1.09728775]
[1754809365906,0.293,811.22,810.99,1.09728775]
[1754809366110,0.293,811.04,810.84,1.09728775]
[1754809366406,0.421,811.04,810.85,1.09728775]
[1754809367107,0.421,811.04,810.84,1.09728775]
[1754809367310,0.421,811.04,810.85,1.09728775]
[1754809368010,0.421,811.04,810.83,1.09728775]
[1754809369413,0.421,811.03,810.83,1.09728775]
[1754809370107,0.421,811.03,810.86,1.09728775]
[1754809370306,0.421,811.03,810.92,1.09728775]
[1754809370507,0.421,811.03,810.74,1.64674667]
[1754809370508,0.421,811.03,810.93,1.09728775]
[1754809371108,0.421,811.03,810.92,1.09728775]
[1754809371410,0.421,811.03,810.93,1.09728775]
[1754809371710,0.421,811.03,810.92,1.09728775]
[1754809374710,0.421,811.03,810.93,1.09728775]
[1754809375408,0.421,811.03,810.92,1.09728775]
[1754809375810,0.293,811.05,810.83,1.09728775]
[1754809376016,0.312,811.03,810.85,1.09728775]
[1754809376213,0.369,811.2,810.9,1.09728775]
[1754809376410,0.35,811.14,810.91,1.09728775]
[1754809376708,0.313,811.19,810.91,1.09728775]
[1754809377114,0.35,811.15,810.91,1.09728775]
[1754809377409,0.313,811.19,810.91,1.09728775]
[1754809378013,0.313,811.19,810.92,1.09728775]
[1754809379510,0.313,811.19,810.68,1.64674667]
[1754809379511,0.313,811.19,810.93,1.09728775]
[1754809381016,0.313,811.19,810.92,1.09728775]
[1754809381416,0.313,811.19,811.02,1.09728775]
[1754809381614,0.295,811.1,811.01,1.09728775]
[1754809382012,0.295,811.1,810.98,1.09728775]
[1754809382216,0.295,811.1,810.99,1.09728775]
[1754809382716,0.295,811.1,810.98,1.09728775]
[1754809383213,0.295,811.1,810.03,2.77337454]
[1754809383214,0.295,811.1,810.99,1.09728775]
[1754809384115,0.5,811.06,810.96,1.09728775]
[1754809384418,0.5,811.06,810.93,1.09728775]
[1754809384715,0.5,811.06,810.95,1.09728775]
[1754809385916,0.5,811.06,810.96,1.09728775]
[1754809386724,0.5,811.06,811.0,1.09728775]
[1754809386922,0.5,811.06,811.04,1.09728775]
[1754809387318,0.5,811.06,811.01,1.09728775]
[1754809387621,0.5,811.06,811.03,1.09728775]
[1754809387822,0.21471938,811.3,809.92,2.77337454]
[1754809387823,0.5,811.18,811.04,1.09728775]
[1754809388325,0.5,811.18,811.05,1.09728775]
[1754809388619,0.5,811.18,811.1,1.09728775]
[1754809389321,0.5,811.18,810.04,2.77337454]
[1754809389322,0.5,811.18,811.11,1.09728775]
[1754809389521,0.5,811.18,811.1,1.09728775]
[1754809390221,0.5,811.18,810.05,2.77337454]
[1754809390222,0.5,811.18,811.11,1.09728775]
[1754809391123,0.5,811.18,811.12,1.09728775]
[1754809391823,0.5,811.18,811.16,1.09728775]
[1754809392024,0.5,811.18,811.12,1.64674667]
[1754809392224,0.5,811.18,811.13,1.64674667]
[1754809393229,0.5,811.18,811.14,1.64674667]
[1754809394332,0.5,811.18,811.15,1.64674667]
[1754809394532,0.5,811.24,810.54,2.77337454]
[1754809394727,0.5,811.24,811.19,1.65675028]
[1754809395133,0.5,811.24,811.2,1.65675028]
[1754809395333,0.5,811.24,810.56,2.77337454]
[1754809395633,0.5,811.24,810.63,2.77337454]
[1754809396228,0.5,811.24,810.33,3.88272436]
[1754809396229,0.5,811.24,810.64,2.77337454]
[1754809397232,0.5,811.24,810.66,2.77337454]
[1754809397833,0.5,811.24,810.65,2.77337454]
[1754809398336,0.5,811.24,810.68,2.77337454]
[1754809399938,0.5,811.24,810.66,2.77337454]
[1754809401934,0.5,811.24,810.68,2.77337454]
[1754809402438,0.5,811.24,810.66,2.77337454]
[1754809402934,0.5,811.24,810.65,2.77337454]
[1754809403138,0.5,811.24,811.23,1.65777113]
[1754809404136,0.5,811.24,810.56,2.77337454]
[1754809408141,0.5,811.24,810.23,3.88272436]
[1754809408339,0.5,811.24,810.24,1.09134885]
[1754809408540,0.5,811.24,810.25,1.09134885]
[1754809408739,0.5,811.24,810.26,1.09134885]
[1754809408940,0.5,811.24,810.27,1.09134885]
[1754809409140,0.5,811.24,810.28,1.09134885]
[1754809409340,0.5,811.24,810.29,1.09134885]
[1754809409543,0.5,811.24,810.3,1.09134885]
[1754809409739,0.5,811.24,810.31,1.09134885]
[1754809410040,0.5,811.24,810.32,1.09134885]
[1754809410240,0.5,811.24,810.33,1.09134885]
[1754809410440,0.5,811.24,810.34,1.09134885]
[1754809410644,0.5,811.24,810.35,1.09134885]
[1754809410844,0.5,811.24,810.36,1.09134885]
[1754809411140,0.5,811.24,810.37,1.09134885]
[1754809411440,0.5,811.24,810.38,1.09134885]
[1754809411740,0.5,811.24,810.39,1.09134885]
[1754809411943,0.5,811.24,809.7,1.055]
[1754809411944,0.5,811.24,810.4,1.09134885]
[1754809412139,0.5,811.24,810.41,1.09134885]
[1754809412441,0.5,811.24,810.42,1.09134885]
[1754809412643,0.5,811.24,810.43,1.09134885]
[1754809412841,0.5,811.24,810.44,1.09134885]
[1754809413037,0.5,811.24,810.45,1.09134885]
[1754809413244,0.5,811.24,810.46,1.09134885]
[1754809413539,0.5,811.24,809.7,1.055]
[1754809413844,0.5,811.24,809.71,1.09130534]
[1754809414139,0.5,811.24,809.72,1.09130534]
[1754809414444,0.5,811.24,809.73,1.09130534]
[1754809414640,0.5,811.24,809.74,1.09130534]
[1754809414838,0.5,811.24,809.75,1.09130534]
[1754809415038,0.5,811.24,809.76,1.09130534]
[1754809415241,0.5,811.24,809.77,1.09130534]
[1754809415441,0.42,811.23,809.78,1.09130534]
[1754809415643,0.42,811.23,809.79,1.09130534]
[1754809415942,0.42,811.23,809.8,1.09130534]
[1754809416140,0.42,811.23,809.81,1.09130534]
[1754809416343,0.42,811.23,809.82,1.09130534]
[1754809416638,0.42,811.23,809.83,1.09130534]
[1754809416840,0.42,811.23,809.84,1.09130534]
[1754809417039,0.42,811.23,809.85,1.09130534]
[1754809417239,0.5,811.09,809.86,1.09130534]
[1754809417442,0.5,811.09,809.7,1.055]
[1754809417443,0.5,811.09,809.87,1.09130534]
[1754809417740,0.5,811.05,809.88,1.09130534]
[1754809417940,0.5,811.05,809.89,1.09130534]
[1754809418241,0.5,811.05,810.95,1.65867934]
[1754809418741,0.5,811.05,810.94,1.65867934]
[1754809419639,0.5,811.04,810.95,1.65867934]
[1754809422145,0.5,811.04,810.96,1.65867934]
[1754809423643,0.5,811.08,810.96,1.65867934]
[1754809423946,0.5,811.08,810.98,1.65867934]
[1754809424346,0.5,811.08,809.7,1.055]
[1754809424347,0.5,811.08,810.99,1.65867934]
[1754809425848,0.5,811.08,810.97,1.65867934]
[1754809427151,0.5,811.08,811.07,1.10707227]
[1754809427347,0.5,811.08,810.85,1.65867934]
[1754809427549,0.5,811.08,810.89,1.65867934]
[1754809427750,0.5,811.08,810.92,1.65867934]
[1754809428651,0.5,811.08,810.93,1.65867934]
[1754809429351,0.5,811.08,810.92,1.65867934]
[1754809430148,0.5,811.08,810.93,1.65867934]
[1754809431154,0.5,811.08,810.92,1.65867934]
[1754809433152,0.5,811.08,810.93,1.65867934]
[1754809435257,0.5,811.08,810.92,1.65867934]
[1754809435655,0.5,811.08,810.93,1.65867934]
[1754809436358,0.5,810.97,810.88,1.65867934]
[1754809436759,0.292,810.96,810.88,1.65867934]
[1754809436958,0.292,810.96,810.07,2.76446557]
[1754809437156,0.5,810.93,810.08,1.09305547]
[1754809437358,0.5,810.86,810.3,2.76446557]
[1754809437559,0.21471938,811.3,810.3,2.76446557]
[1754809437760,0.21471938,811.3,811.08,1.1071189]
[1754809438256,0.21471938,811.3,811.09,1.1071189]
[1754809438460,0.21471938,811.3,811.09,0.6071189]
[1754809439457,0.21471938,811.3,811.09,0.1071189]
[1754809440658,0.21471938,811.3,810.92,1.66067835]
[1754809440856,0.393,810.97,810.92,1.66067835]
[1754809441157,0.393,810.97,810.96,1.66067835]
[1754809441457,0.5,810.97,810.32,2.76446557]
[1754809441656,0.5,810.97,810.36,2.76446557]
[1754809442663,0.5,810.97,810.94,1.65995711]
[1754809442959,0.5,810.99,810.36,2.76446557]
[1754809443161,0.5,810.99,810.37,3.85653442]
[1754809443357,0.5,810.99,810.38,1.09206885]
[1754809443560,0.5,810.99,810.39,1.09206885]
[1754809443758,0.5,810.99,810.4,1.09206885]
[1754809443962,0.5,810.99,810.41,1.09206885]
[1754809444160,0.5,810.99,810.38,2.76446557]
[1754809444459,0.5,811.02,810.39,1.09204363]
[1754809444661,0.5,811.02,810.4,1.09204363]
[1754809444863,0.5,811.02,810.41,1.09204363]
[1754809445064,0.5,811.02,810.38,2.76446557]
[1754809445265,0.5,811.02,810.39,1.09197998]
[1754809445561,0.5,811.02,810.4,1.09197998]
[1754809445758,0.5,811.02,810.41,1.09197998]
[1754809445959,0.5,811.02,810.37,2.76446557]
[1754809445960,0.5,811.02,810.42,1.0920161]
[1754809446161,0.5,811.02,810.33,2.76446557]
[1754809446360,0.5,811.02,810.34,1.09200596]
[1754809446563,0.5,811.02,810.35,1.09200596]
[1754809446764,0.5,811.02,810.36,1.09200596]
[1754809446964,0.5,811.02,810.37,1.09200596]
[1754809447164,0.5,811.02,810.38,1.09200596]
[1754809447464,0.5,811.02,810.39,1.09200596]
[1754809447666,0.5,811.02,810.4,1.09200596]
[1754809447863,0.5,811.02,810.41,1.09200596]
[1754809448061,0.5,811.02,810.42,1.09200596]
[1754809448364,0.5,811.02,810.43,1.09200596]
[1754809448561,0.21471938,811.3,810.33,2.76446557]
[1754809448763,0.21471938,811.3,811.14,1.65829667]
[1754809449262,0.21471938,811.3,811.13,1.65829667]
[1754809449464,0.21471938,811.3,811.13,1.15829667]